[Event "Titled Tuesday Blitz January 10 Early 2023"]
[White "Shuvalov, Evgenij"]
[Black "Piesik, Piotr"]
[WhiteFideId "4187237"]
[BlackFideId "1136194"]
[WhiteElo "2038"]
[BlackElo "2426"]
[Result "1/2-1/2"]
[Round "11"]
[TimeControl "180+2"]
[Date "2023.01.10"]
[WhiteClock "0:00:12"]
[BlackClock "0:00:15"]

1. d4 {[%clk 0:03:00]}  c5 {[%clk 0:02:56]} 2. Nf3 {[%clk 0:02:58]}  cxd4 {[%clk 0:02:56]} 3. Nxd4 {[%clk 0:02:59]}  d5 {[%clk 0:02:56]} 4. c4 {[%clk 0:02:52]}  dxc4 {[%clk 0:02:57]} 5. Qa4+ {[%clk 0:02:48]}  Bd7 {[%clk 0:02:57]} 6. Qxc4 {[%clk 0:02:47]}  e5 {[%clk 0:02:57]} 7. Nf3 {[%clk 0:02:41]}  Nc6 {[%clk 0:02:57]} 8. Ng5 {[%clk 0:02:33]}  Nh6 {[%clk 0:02:50]} 9. Nc3 {[%clk 0:01:59]}  Rc8 {[%clk 0:02:47]} 10. Qd3 {[%clk 0:01:50]}  Be7 {[%clk 0:02:14]} 11. Nge4 {[%clk 0:01:39]}  Nf5 {[%clk 0:02:14]} 12. e3 {[%clk 0:01:34]}  O-O {[%clk 0:02:03]} 13. Be2 {[%clk 0:01:34]}  Nb4 {[%clk 0:01:49]} 14. Qd1 {[%clk 0:01:30]}  Be6 {[%clk 0:01:47]} 15. O-O {[%clk 0:01:24]}  Qxd1 {[%clk 0:01:39]} 16. Rxd1 {[%clk 0:01:22]}  Rfd8 {[%clk 0:01:37]} 17. Rxd8+ {[%clk 0:01:18]}  Rxd8 {[%clk 0:01:37]} 18. Bd2 {[%clk 0:01:11]}  Nd6 {[%clk 0:01:29]} 19. Nxd6 {[%clk 0:01:08]}  Rxd6 {[%clk 0:01:30]} 20. Ne4 {[%clk 0:01:06]}  Rc6 {[%clk 0:01:29]} 21. Bxb4 {[%clk 0:01:02]}  Bxb4 {[%clk 0:01:29]} 22. a3 {[%clk 0:00:59]}  Be7 {[%clk 0:01:28]} 23. Nc3 {[%clk 0:00:55]}  f5 {[%clk 0:01:20]} 24. Kf1 {[%clk 0:00:51]}  Kf7 {[%clk 0:01:15]} 25. Ke1 {[%clk 0:00:51]}  e4 {[%clk 0:01:13]} 26. Kd2 {[%clk 0:00:45]}  Bb3 {[%clk 0:01:09]} 27. Bd1 {[%clk 0:00:37]}  Rd6+ {[%clk 0:01:09]} 28. Ke1 {[%clk 0:00:37]}  Be6 {[%clk 0:01:06]} 29. Rc1 {[%clk 0:00:31]}  Bf6 {[%clk 0:01:04]} 30. Nb5 {[%clk 0:00:15]}  Rb6 {[%clk 0:01:03]} 31. Rc7+ {[%clk 0:00:14]}  Kg6 {[%clk 0:01:03]} 32. Nd4 {[%clk 0:00:14]}  Bxd4 {[%clk 0:01:00]} 33. exd4 {[%clk 0:00:15]}  Rxb2 {[%clk 0:01:00]} 34. h4 {[%clk 0:00:11]}  Kf6 {[%clk 0:00:56]} 35. g3 {[%clk 0:00:11]}  a5 {[%clk 0:00:51]} 36. a4 {[%clk 0:00:11]}  Rb4 {[%clk 0:00:46]} 37. d5 {[%clk 0:00:10]}  Bxd5 {[%clk 0:00:45]} 38. Rc5 {[%clk 0:00:10]}  Bc6 {[%clk 0:00:43]} 39. Rxa5 {[%clk 0:00:10]}  Rb1 {[%clk 0:00:39]} 40. Kd2 {[%clk 0:00:10]}  Rb2+ {[%clk 0:00:37]} 41. Ke1 {[%clk 0:00:10]}  g6 {[%clk 0:00:34]} 42. Ra7 {[%clk 0:00:10]}  h6 {[%clk 0:00:31]} 43. a5 {[%clk 0:00:10]}  Ra2 {[%clk 0:00:30]} 44. Be2 {[%clk 0:00:09]}  Ke5 {[%clk 0:00:29]} 45. a6 {[%clk 0:00:09]}  bxa6 {[%clk 0:00:29]} 46. Rxa6 {[%clk 0:00:10]}  Rxa6 {[%clk 0:00:29]} 47. Bxa6 {[%clk 0:00:10]}  f4 {[%clk 0:00:28]} 48. gxf4+ {[%clk 0:00:10]}  Kxf4 {[%clk 0:00:29]} 49. Be2 {[%clk 0:00:09]}  Bd7 {[%clk 0:00:28]} 50. Kf1 {[%clk 0:00:07]}  Bg4 {[%clk 0:00:27]} 51. Bc4 {[%clk 0:00:07]}  Bh5 {[%clk 0:00:26]} 52. Kg2 {[%clk 0:00:07]}  Bf3+ {[%clk 0:00:21]} 53. Kh2 {[%clk 0:00:07]}  Kg4 {[%clk 0:00:20]} 54. Bf7 {[%clk 0:00:06]}  Kf5 {[%clk 0:00:18]} 55. Kg3 {[%clk 0:00:06]}  Bd1 {[%clk 0:00:16]} 56. Bc4 {[%clk 0:00:06]}  Bc2 {[%clk 0:00:15]} 57. Bb5 {[%clk 0:00:05]}  Bd3 {[%clk 0:00:14]} 58. Bd7+ {[%clk 0:00:05]}  Ke5 {[%clk 0:00:14]} 59. Bg4 {[%clk 0:00:06]}  Bc4 {[%clk 0:00:13]} 60. Bd1 {[%clk 0:00:06]}  Be6 {[%clk 0:00:13]} 61. Be2 {[%clk 0:00:06]}  Bf5 {[%clk 0:00:12]} 62. Bd1 {[%clk 0:00:06]}  Kd4 {[%clk 0:00:12]} 63. Be2 {[%clk 0:00:06]}  Kc3 {[%clk 0:00:12]} 64. Bd1 {[%clk 0:00:06]}  Kd2 {[%clk 0:00:12]} 65. Bb3 {[%clk 0:00:06]}  g5 {[%clk 0:00:11]} 66. hxg5 {[%clk 0:00:06]}  hxg5 {[%clk 0:00:12]} 67. Bd5 {[%clk 0:00:07]}  Kc3 {[%clk 0:00:11]} 68. Bc6 {[%clk 0:00:07]}  Kd4 {[%clk 0:00:11]} 69. Bb7 {[%clk 0:00:07]}  Ke5 {[%clk 0:00:12]} 70. Ba6 {[%clk 0:00:07]}  Be6 {[%clk 0:00:11]} 71. Be2 {[%clk 0:00:07]}  Bd5 {[%clk 0:00:10]} 72. Bd1 {[%clk 0:00:07]}  Kf5 {[%clk 0:00:10]} 73. Bg4+ {[%clk 0:00:07]}  Kf6 {[%clk 0:00:11]} 74. Be2 {[%clk 0:00:08]}  Be6 {[%clk 0:00:11]} 75. Bd1 {[%clk 0:00:08]}  Bf5 {[%clk 0:00:10]} 76. Be2 {[%clk 0:00:09]}  Ke5 {[%clk 0:00:11]} 77. Bd1 {[%clk 0:00:09]}  Kd4 {[%clk 0:00:11]} 78. Be2 {[%clk 0:00:09]}  Kd5 {[%clk 0:00:12]} 79. Bd1 {[%clk 0:00:10]}  Kc5 {[%clk 0:00:12]} 80. Be2 {[%clk 0:00:10]}  Kd4 {[%clk 0:00:13]} 81. Bd1 {[%clk 0:00:11]}  Kd3 {[%clk 0:00:14]} 82. Ba4 {[%clk 0:00:11]}  e3 {[%clk 0:00:13]} 83. fxe3 {[%clk 0:00:10]}  Kxe3 {[%clk 0:00:14]} 84. Bc6 {[%clk 0:00:10]}  Be4 {[%clk 0:00:14]} 85. Bxe4 {[%clk 0:00:10]}  Kxe4 {[%clk 0:00:15]} 86. Kg4 {[%clk 0:00:11]}  Ke5 {[%clk 0:00:15]} 87. Kxg5 {[%clk 0:00:12]} 1/2-1/2


[Site "https://www.chess.com"]

[Event "Titled Tuesday Blitz January 10 Early 2023"]
[White "Ortega Ruiz, Jose Miguel"]
[Black "Hamley, Ryan"]
[WhiteFideId "2209713"]
[BlackFideId "30959497"]
[WhiteElo "2351"]
[BlackElo "2092"]
[Result "0-1"]
[Round "11"]
[TimeControl "180+2"]
[Date "2023.01.10"]
[WhiteClock "0:01:43"]
[BlackClock "0:00:59"]

1. g3 {[%clk 0:03:00]}  g6 {[%clk 0:03:00]} 2. Bg2 {[%clk 0:03:01]}  Bg7 {[%clk 0:03:00]} 3. d4 {[%clk 0:03:01]}  d6 {[%clk 0:03:00]} 4. e4 {[%clk 0:03:01]}  Nf6 {[%clk 0:03:00]} 5. Ne2 {[%clk 0:03:01]}  O-O {[%clk 0:03:01]} 6. O-O {[%clk 0:03:02]}  c6 {[%clk 0:03:00]} 7. Nbc3 {[%clk 0:03:01]}  e5 {[%clk 0:03:00]} 8. dxe5 {[%clk 0:02:56]}  dxe5 {[%clk 0:03:01]} 9. Be3 {[%clk 0:02:51]}  Ng4 {[%clk 0:02:58]} 10. Bc5 {[%clk 0:02:51]}  Re8 {[%clk 0:02:58]} 11. h3 {[%clk 0:02:52]}  Nf6 {[%clk 0:02:54]} 12. a4 {[%clk 0:02:51]}  Nbd7 {[%clk 0:02:53]} 13. Be3 {[%clk 0:02:51]}  Qe7 {[%clk 0:02:52]} 14. a5 {[%clk 0:02:52]}  Nc5 {[%clk 0:02:51]} 15. b4 {[%clk 0:02:49]}  Ne6 {[%clk 0:02:51]} 16. b5 {[%clk 0:02:47]}  Rd8 {[%clk 0:02:50]} 17. Qb1 {[%clk 0:02:47]}  Nd4 {[%clk 0:02:50]} 18. a6 {[%clk 0:02:45]}  bxa6 {[%clk 0:02:46]} 19. bxc6 {[%clk 0:02:44]}  Nxc6 {[%clk 0:02:43]} 20. Nd5 {[%clk 0:02:44]}  Qd6 {[%clk 0:02:15]} 21. Rd1 {[%clk 0:02:44]}  Nxd5 {[%clk 0:02:15]} 22. exd5 {[%clk 0:02:38]}  Nd4 {[%clk 0:02:10]} 23. Nxd4 {[%clk 0:02:34]}  exd4 {[%clk 0:02:11]} 24. Bf4 {[%clk 0:02:34]}  Qc5 {[%clk 0:02:08]} 25. d6 {[%clk 0:02:22]}  Bf5 {[%clk 0:02:08]} 26. Bxa8 {[%clk 0:02:19]}  Bxc2 {[%clk 0:01:44]} 27. Qb7 {[%clk 0:02:18]}  g5 {[%clk 0:01:29]} 28. Bxg5 {[%clk 0:02:13]}  Qxg5 {[%clk 0:01:27]} 29. Re1 {[%clk 0:02:04]}  d3 {[%clk 0:01:20]} 30. Qd5 {[%clk 0:02:01]}  Qxd5 {[%clk 0:01:18]} 31. Bxd5 {[%clk 0:02:02]}  d2 {[%clk 0:01:18]} 32. d7 {[%clk 0:01:48]}  dxe1=Q+ {[%clk 0:01:14]} 33. Rxe1 {[%clk 0:01:49]}  Rxd7 {[%clk 0:01:14]} 34. Bf3 {[%clk 0:01:47]}  Bd4 {[%clk 0:01:13]} 35. Re8+ {[%clk 0:01:47]}  Kg7 {[%clk 0:01:13]} 36. h4 {[%clk 0:01:44]}  a5 {[%clk 0:01:08]} 37. Re2 {[%clk 0:01:43]}  Bd1 {[%clk 0:01:06]} 38. Bg4 {[%clk 0:01:41]}  Bxe2 {[%clk 0:01:02]} 39. Bxd7 {[%clk 0:01:41]}  Bd1 {[%clk 0:01:01]} 40. Kf1 {[%clk 0:01:42]}  a4 {[%clk 0:01:01]} 41. Ke1 {[%clk 0:01:43]}  a3 {[%clk 0:00:59]} 42. Be6 {[%clk 0:01:43]}  fxe6 {[%clk 0:00:59]} 0-1


[Site "https://www.chess.com"]

[Event "Titled Tuesday Blitz January 10 Early 2023"]
[White "Ashraf, Artin"]
[Black "Fernandez Garcia, Gumersindo"]
[WhiteFideId "22514805"]
[BlackFideId "24516740"]
[WhiteElo "2314"]
[BlackElo "2160"]
[Result "1-0"]
[Round "11"]
[TimeControl "180+2"]
[Date "2023.01.10"]
[WhiteClock "0:01:29"]
[BlackClock "0:00:37"]

1. e4 {[%clk 0:02:56]}  d6 {[%clk 0:02:57]} 2. d4 {[%clk 0:02:53]}  Nf6 {[%clk 0:02:57]} 3. Nc3 {[%clk 0:02:49]}  e5 {[%clk 0:02:57]} 4. Nf3 {[%clk 0:02:47]}  Nbd7 {[%clk 0:02:55]} 5. Bc4 {[%clk 0:02:41]}  Be7 {[%clk 0:02:56]} 6. O-O {[%clk 0:02:39]}  c6 {[%clk 0:02:56]} 7. a4 {[%clk 0:02:38]}  O-O {[%clk 0:02:56]} 8. a5 {[%clk 0:02:38]}  Re8 {[%clk 0:02:51]} 9. Bxf7+ {[%clk 0:02:28]}  Kxf7 {[%clk 0:02:21]} 10. Ng5+ {[%clk 0:02:26]}  Kg8 {[%clk 0:02:22]} 11. Ne6 {[%clk 0:02:26]}  Nf8 {[%clk 0:02:21]} 12. Nxd8 {[%clk 0:02:24]}  Rxd8 {[%clk 0:02:22]} 13. d5 {[%clk 0:02:20]}  c5 {[%clk 0:02:19]} 14. f3 {[%clk 0:02:12]}  Ng6 {[%clk 0:02:17]} 15. Be3 {[%clk 0:02:10]}  h5 {[%clk 0:02:12]} 16. Qe2 {[%clk 0:02:07]}  Bd7 {[%clk 0:02:08]} 17. Rfd1 {[%clk 0:02:06]}  Rf8 {[%clk 0:02:06]} 18. Ra3 {[%clk 0:02:04]}  Rae8 {[%clk 0:02:02]} 19. Rb3 {[%clk 0:02:03]}  Bc8 {[%clk 0:02:02]} 20. Nb5 {[%clk 0:02:01]}  a6 {[%clk 0:02:02]} 21. Na7 {[%clk 0:01:59]}  Bd7 {[%clk 0:01:43]} 22. Rxb7 {[%clk 0:01:57]}  Bd8 {[%clk 0:01:43]} 23. Qxa6 {[%clk 0:01:53]}  h4 {[%clk 0:01:33]} 24. Qxd6 {[%clk 0:01:50]}  Be7 {[%clk 0:01:32]} 25. Qb6 {[%clk 0:01:46]}  Bd8 {[%clk 0:01:32]} 26. Qxc5 {[%clk 0:01:44]}  h3 {[%clk 0:01:32]} 27. g3 {[%clk 0:01:37]}  Rf7 {[%clk 0:01:23]} 28. Nc6 {[%clk 0:01:36]}  Nh5 {[%clk 0:01:08]} 29. Qd6 {[%clk 0:01:32]}  Nf6 {[%clk 0:00:49]} 30. a6 {[%clk 0:01:31]}  Bc8 {[%clk 0:00:38]} 31. Rxf7 {[%clk 0:01:29]}  Kxf7 {[%clk 0:00:37]} 32. Nxd8+ {[%clk 0:01:29]} 1-0


[Site "https://www.chess.com"]

[Event "Titled Tuesday Blitz January 10 Early 2023"]
[White "Maksimenko, Viktor"]
[Black "Gjestemoen-VonHirsch, Andre"]
[WhiteFideId "13710478"]
[BlackFideId "1539531"]
[WhiteElo "2196"]
[BlackElo "2314"]
[Result "1-0"]
[Round "11"]
[TimeControl "180+2"]
[Date "2023.01.10"]
[WhiteClock "0:00:36"]
[BlackClock "0:00:03"]

1. d4 {[%clk 0:03:00]}  g6 {[%clk 0:02:58]} 2. e4 {[%clk 0:03:00]}  Bg7 {[%clk 0:02:58]} 3. Nc3 {[%clk 0:03:00]}  c5 {[%clk 0:02:53]} 4. d5 {[%clk 0:03:00]}  d6 {[%clk 0:02:49]} 5. Bb5+ {[%clk 0:02:59]}  Bd7 {[%clk 0:02:45]} 6. a4 {[%clk 0:03:00]}  Bxc3+ {[%clk 0:02:36]} 7. bxc3 {[%clk 0:03:00]}  Nf6 {[%clk 0:02:37]} 8. f3 {[%clk 0:02:56]}  Qa5 {[%clk 0:02:32]} 9. Bd2 {[%clk 0:02:53]}  Bxb5 {[%clk 0:02:22]} 10. c4 {[%clk 0:02:52]}  Qc7 {[%clk 0:02:18]} 11. cxb5 {[%clk 0:02:49]}  Nbd7 {[%clk 0:02:09]} 12. a5 {[%clk 0:02:40]}  O-O {[%clk 0:02:05]} 13. c4 {[%clk 0:02:37]}  e6 {[%clk 0:01:59]} 14. Ne2 {[%clk 0:02:36]}  exd5 {[%clk 0:01:58]} 15. cxd5 {[%clk 0:02:33]}  Rfe8 {[%clk 0:01:52]} 16. O-O {[%clk 0:02:32]}  b6 {[%clk 0:01:43]} 17. Bc3 {[%clk 0:02:30]}  a6 {[%clk 0:01:41]} 18. axb6 {[%clk 0:02:22]}  Qxb6 {[%clk 0:01:37]} 19. bxa6 {[%clk 0:02:21]}  Rxa6 {[%clk 0:01:36]} 20. Rb1 {[%clk 0:02:22]}  Qc7 {[%clk 0:01:27]} 21. Qd2 {[%clk 0:02:20]}  Rea8 {[%clk 0:01:27]} 22. Qg5 {[%clk 0:02:17]}  Ne8 {[%clk 0:01:23]} 23. h4 {[%clk 0:02:09]}  Ra2 {[%clk 0:01:18]} 24. Nf4 {[%clk 0:02:09]}  Ne5 {[%clk 0:01:01]} 25. h5 {[%clk 0:02:04]}  Rc2 {[%clk 0:00:51]} 26. Ba1 {[%clk 0:02:00]}  Raa2 {[%clk 0:00:49]} 27. Rfc1 {[%clk 0:01:49]}  Rxg2+ {[%clk 0:00:41]} 28. Qxg2 {[%clk 0:01:38]}  Rxg2+ {[%clk 0:00:40]} 29. Kxg2 {[%clk 0:01:39]}  Qd8 {[%clk 0:00:33]} 30. Bxe5 {[%clk 0:01:30]}  dxe5 {[%clk 0:00:33]} 31. Nh3 {[%clk 0:01:31]}  Qc7 {[%clk 0:00:24]} 32. h6 {[%clk 0:01:16]}  Kf8 {[%clk 0:00:20]} 33. Nf2 {[%clk 0:01:14]}  c4 {[%clk 0:00:20]} 34. Ra1 {[%clk 0:01:11]}  f5 {[%clk 0:00:18]} 35. Ra6 {[%clk 0:01:08]}  Qb7 {[%clk 0:00:11]} 36. Rc6 {[%clk 0:01:05]}  fxe4 {[%clk 0:00:09]} 37. fxe4 {[%clk 0:01:05]}  Nd6 {[%clk 0:00:05]} 38. Rxd6 {[%clk 0:01:04]}  Qe7 {[%clk 0:00:04]} 39. Nh3 {[%clk 0:00:41]}  Qxd6 {[%clk 0:00:04]} 40. Rxc4 {[%clk 0:00:42]}  Ke7 {[%clk 0:00:04]} 41. Rc6 {[%clk 0:00:41]}  Qa3 {[%clk 0:00:03]} 42. Re6+ {[%clk 0:00:37]}  Kf7 {[%clk 0:00:03]} 43. Ng5+ {[%clk 0:00:37]}  Kf8 {[%clk 0:00:04]} 44. Nxh7+ {[%clk 0:00:38]}  Kg8 {[%clk 0:00:04]} 45. Ng5 {[%clk 0:00:36]}  Qb2+ {[%clk 0:00:04]} 46. Kh3 {[%clk 0:00:36]}  Qc3+ {[%clk 0:00:04]} 47. Kg4 {[%clk 0:00:36]}  Qe3 {[%clk 0:00:03]} 48. Re8# {[%clk 0:00:36]} 1-0


[Site "https://www.chess.com"]

[Event "Titled Tuesday Blitz January 10 Early 2023"]
[White "Sanchez, Robert"]
[Black "Yuan, Qingyu"]
[WhiteFideId "2034360"]
[BlackFideId "8609772"]
[WhiteElo "1966"]
[BlackElo "2373"]
[Result "1/2-1/2"]
[Round "11"]
[TimeControl "180+2"]
[Date "2023.01.10"]
[WhiteClock "0:00:17"]
[BlackClock "0:00:03"]

1. e4 {[%clk 0:03:00]}  e5 {[%clk 0:03:00]} 2. Nf3 {[%clk 0:03:00]}  Nc6 {[%clk 0:03:00]} 3. Bb5 {[%clk 0:03:01]}  Nf6 {[%clk 0:03:01]} 4. d3 {[%clk 0:03:01]}  Bc5 {[%clk 0:03:01]} 5. Nc3 {[%clk 0:02:57]}  Nd4 {[%clk 0:02:59]} 6. Nxd4 {[%clk 0:02:55]}  exd4 {[%clk 0:02:45]} 7. Ne2 {[%clk 0:02:54]}  c6 {[%clk 0:02:46]} 8. Bc4 {[%clk 0:02:52]}  d5 {[%clk 0:02:46]} 9. exd5 {[%clk 0:02:51]}  Nxd5 {[%clk 0:02:41]} 10. O-O {[%clk 0:02:47]}  O-O {[%clk 0:02:41]} 11. Ng3 {[%clk 0:02:45]}  Nb6 {[%clk 0:02:25]} 12. Bb3 {[%clk 0:02:44]}  Bd6 {[%clk 0:02:25]} 13. Qh5 {[%clk 0:02:28]}  g6 {[%clk 0:02:15]} 14. Qh6 {[%clk 0:02:25]}  Be5 {[%clk 0:02:07]} 15. Bg5 {[%clk 0:02:19]}  Bg7 {[%clk 0:01:22]} 16. Qh4 {[%clk 0:02:07]}  Qd7 {[%clk 0:01:02]} 17. h3 {[%clk 0:01:55]}  Nd5 {[%clk 0:00:59]} 18. Rfe1 {[%clk 0:01:49]}  f6 {[%clk 0:00:39]} 19. Bh6 {[%clk 0:01:37]}  g5 {[%clk 0:00:28]} 20. Qh5 {[%clk 0:01:34]}  Qf7 {[%clk 0:00:28]} 21. Bxg7 {[%clk 0:01:31]}  Kxg7 {[%clk 0:00:24]} 22. Qe2 {[%clk 0:01:26]}  Bd7 {[%clk 0:00:16]} 23. Qf3 {[%clk 0:01:24]}  Rae8 {[%clk 0:00:15]} 24. Nf5+ {[%clk 0:01:22]}  Bxf5 {[%clk 0:00:15]} 25. Qxf5 {[%clk 0:01:23]}  a6 {[%clk 0:00:04]} 26. Qg4 {[%clk 0:01:13]}  a5 {[%clk 0:00:04]} 27. Qxd4 {[%clk 0:01:09]}  Rd8 {[%clk 0:00:03]} 28. Qg4 {[%clk 0:01:00]}  h5 {[%clk 0:00:03]} 29. Qf5 {[%clk 0:00:58]}  Qg6 {[%clk 0:00:02]} 30. Qxg6+ {[%clk 0:00:53]}  Kxg6 {[%clk 0:00:03]} 31. Bxd5 {[%clk 0:00:53]}  Rxd5 {[%clk 0:00:03]} 32. Re7 {[%clk 0:00:53]}  Rf7 {[%clk 0:00:04]} 33. Rae1 {[%clk 0:00:49]}  Rb5 {[%clk 0:00:04]} 34. b3 {[%clk 0:00:46]}  Rc5 {[%clk 0:00:04]} 35. c4 {[%clk 0:00:46]}  Rf5 {[%clk 0:00:04]} 36. Re8 {[%clk 0:00:37]}  Rf4 {[%clk 0:00:04]} 37. R1e4 {[%clk 0:00:33]}  Rxe4 {[%clk 0:00:02]} 38. dxe4 {[%clk 0:00:24]}  Rd7 {[%clk 0:00:03]} 39. g3 {[%clk 0:00:18]}  Rd2 {[%clk 0:00:02]} 40. Re7 {[%clk 0:00:18]}  Rxa2 {[%clk 0:00:02]} 41. Rxb7 {[%clk 0:00:18]}  Rb2 {[%clk 0:00:02]} 42. Rb6 {[%clk 0:00:18]}  a4 {[%clk 0:00:02]} 43. Rxc6 {[%clk 0:00:18]}  axb3 {[%clk 0:00:02]} 44. Rb6 {[%clk 0:00:18]}  Rc2 {[%clk 0:00:02]} 45. Rxb3 {[%clk 0:00:17]}  Rxc4 {[%clk 0:00:02]} 46. Re3 {[%clk 0:00:17]}  g4 {[%clk 0:00:03]} 1/2-1/2


[Site "https://www.chess.com"]

[Event "Titled Tuesday Blitz January 10 Early 2023"]
[White "Kosteniuk, Alexandra"]
[Black "Fisher_TheGalactic"]
[WhiteFideId "4128125"]
[WhiteElo "2535"]
[BlackElo "2530"]
[Result "0-1"]
[Round "11"]
[TimeControl "180+2"]
[Date "2023.01.10"]
[WhiteClock "0:00:05"]
[BlackClock "0:00:20"]

1. e4 {[%clk 0:02:56]}  b6 {[%clk 0:02:59]} 2. d4 {[%clk 0:02:56]}  Bb7 {[%clk 0:02:59]} 3. Bd3 {[%clk 0:02:54]}  Nf6 {[%clk 0:02:58]} 4. Nd2 {[%clk 0:02:51]}  e6 {[%clk 0:02:58]} 5. Ne2 {[%clk 0:02:50]}  d5 {[%clk 0:02:58]} 6. e5 {[%clk 0:02:47]}  Nfd7 {[%clk 0:02:59]} 7. c3 {[%clk 0:02:44]}  c5 {[%clk 0:02:59]} 8. f4 {[%clk 0:02:41]}  Nc6 {[%clk 0:02:56]} 9. Nf3 {[%clk 0:02:40]}  g6 {[%clk 0:02:55]} 10. Be3 {[%clk 0:02:33]}  Be7 {[%clk 0:02:54]} 11. O-O {[%clk 0:02:30]}  Qc7 {[%clk 0:02:53]} 12. Rc1 {[%clk 0:02:30]}  c4 {[%clk 0:02:49]} 13. Bb1 {[%clk 0:02:29]}  O-O-O {[%clk 0:02:49]} 14. b3 {[%clk 0:02:27]}  Na5 {[%clk 0:02:47]} 15. b4 {[%clk 0:02:19]}  Nc6 {[%clk 0:02:46]} 16. a4 {[%clk 0:02:15]}  Rdf8 {[%clk 0:02:46]} 17. a5 {[%clk 0:02:08]}  b5 {[%clk 0:02:30]} 18. Bc2 {[%clk 0:01:57]}  a6 {[%clk 0:02:29]} 19. Qe1 {[%clk 0:01:56]}  h5 {[%clk 0:02:25]} 20. Qg3 {[%clk 0:01:55]}  Bd8 {[%clk 0:02:21]} 21. Qh3 {[%clk 0:01:52]}  Kb8 {[%clk 0:02:19]} 22. Rf2 {[%clk 0:01:49]}  Ne7 {[%clk 0:02:19]} 23. Kf1 {[%clk 0:01:38]}  Ka7 {[%clk 0:02:18]} 24. Ke1 {[%clk 0:01:38]}  Nb8 {[%clk 0:02:18]} 25. Kd2 {[%clk 0:01:37]}  Nbc6 {[%clk 0:02:18]} 26. Rb1 {[%clk 0:01:37]}  Bc8 {[%clk 0:02:14]} 27. g3 {[%clk 0:01:36]}  Qd7 {[%clk 0:02:13]} 28. Qg2 {[%clk 0:01:36]}  Bc7 {[%clk 0:02:13]} 29. Nh4 {[%clk 0:01:33]}  Bd8 {[%clk 0:02:12]} 30. Nf3 {[%clk 0:01:32]}  Bb7 {[%clk 0:02:12]} 31. h3 {[%clk 0:01:32]}  Nxa5 {[%clk 0:01:58]} 32. bxa5 {[%clk 0:01:30]}  Bxa5 {[%clk 0:01:59]} 33. Rff1 {[%clk 0:01:26]}  Nc6 {[%clk 0:01:59]} 34. Kd1 {[%clk 0:01:04]}  b4 {[%clk 0:01:54]} 35. cxb4 {[%clk 0:01:03]}  Bxb4 {[%clk 0:01:52]} 36. Ba4 {[%clk 0:00:56]}  Qe7 {[%clk 0:01:51]} 37. Nc1 {[%clk 0:00:54]}  a5 {[%clk 0:01:49]} 38. Qa2 {[%clk 0:00:54]}  Rb8 {[%clk 0:01:41]} 39. Ne2 {[%clk 0:00:51]}  Kb6 {[%clk 0:01:39]} 40. Bd2 {[%clk 0:00:51]}  Kc7 {[%clk 0:01:38]} 41. Bxc6 {[%clk 0:00:43]}  Bxc6 {[%clk 0:01:39]} 42. Bxb4 {[%clk 0:00:42]}  axb4 {[%clk 0:01:40]} 43. Qa5+ {[%clk 0:00:38]}  Rb6 {[%clk 0:01:40]} 44. Kc2 {[%clk 0:00:23]}  Ra8 {[%clk 0:01:40]} 45. Qc5 {[%clk 0:00:24]}  Qxc5 {[%clk 0:01:37]} 46. dxc5 {[%clk 0:00:24]}  b3+ {[%clk 0:01:34]} 47. Kc3 {[%clk 0:00:24]}  Rba6 {[%clk 0:01:33]} 48. Nfd4 {[%clk 0:00:23]}  Ra2 {[%clk 0:01:31]} 49. Rfc1 {[%clk 0:00:21]}  R8a3 {[%clk 0:01:28]} 50. Rb2 {[%clk 0:00:19]}  Ra1 {[%clk 0:01:16]} 51. Rcb1 {[%clk 0:00:18]}  R3a2 {[%clk 0:01:05]} 52. g4 {[%clk 0:00:16]}  Rxb1 {[%clk 0:00:51]} 53. Rxb1 {[%clk 0:00:16]}  h4 {[%clk 0:00:50]} 54. f5 {[%clk 0:00:14]}  gxf5 {[%clk 0:00:36]} 55. gxf5 {[%clk 0:00:14]}  exf5 {[%clk 0:00:37]} 56. Rb2 {[%clk 0:00:15]}  Ra1 {[%clk 0:00:37]} 57. Nxf5 {[%clk 0:00:15]}  Bd7 {[%clk 0:00:30]} 58. Ne3 {[%clk 0:00:13]}  Be6 {[%clk 0:00:26]} 59. Nf4 {[%clk 0:00:12]}  Kc6 {[%clk 0:00:26]} 60. Kb4 {[%clk 0:00:10]}  Rc1 {[%clk 0:00:22]} 61. Rf2 {[%clk 0:00:08]}  d4 {[%clk 0:00:20]} 62. Nxe6 {[%clk 0:00:08]}  dxe3 {[%clk 0:00:19]} 63. Nd8+ {[%clk 0:00:07]}  Kd7 {[%clk 0:00:18]} 64. Rxf7+ {[%clk 0:00:07]}  Kxd8 {[%clk 0:00:19]} 65. c6 {[%clk 0:00:06]}  b2 {[%clk 0:00:19]} 66. Rf8+ {[%clk 0:00:05]}  Kc7 {[%clk 0:00:19]} 67. Rf7+ {[%clk 0:00:05]}  Kxc6 {[%clk 0:00:20]} 68. Rf6+ {[%clk 0:00:05]}  Kd5 {[%clk 0:00:20]} 0-1


[Site "https://www.chess.com"]

[Event "Titled Tuesday Blitz January 10 Early 2023"]
[White "Begmuratov, Khumoyun"]
[Black "Khamdamova, Afruza"]
[WhiteFideId "14210207"]
[BlackFideId "14210444"]
[WhiteElo "2387"]
[BlackElo "2162"]
[Result "1-0"]
[Round "11"]
[TimeControl "180+2"]
[Date "2023.01.10"]
[WhiteClock "0:00:05"]
[BlackClock "0:00:01"]

1. e4 {[%clk 0:03:00]}  e5 {[%clk 0:03:00]} 2. Nf3 {[%clk 0:03:00]}  Nf6 {[%clk 0:03:00]} 3. Nc3 {[%clk 0:03:00]}  Nc6 {[%clk 0:02:59]} 4. d4 {[%clk 0:03:01]}  exd4 {[%clk 0:02:59]} 5. Nxd4 {[%clk 0:03:02]}  Bb4 {[%clk 0:03:00]} 6. Nxc6 {[%clk 0:03:02]}  bxc6 {[%clk 0:03:00]} 7. Bd3 {[%clk 0:03:03]}  O-O {[%clk 0:03:01]} 8. O-O {[%clk 0:03:03]}  d5 {[%clk 0:03:01]} 9. exd5 {[%clk 0:03:04]}  cxd5 {[%clk 0:03:01]} 10. Qf3 {[%clk 0:03:04]}  Rb8 {[%clk 0:02:59]} 11. h3 {[%clk 0:03:04]}  c6 {[%clk 0:02:39]} 12. Ne2 {[%clk 0:02:41]}  Bd6 {[%clk 0:02:39]} 13. b3 {[%clk 0:02:37]}  c5 {[%clk 0:02:32]} 14. Bf4 {[%clk 0:02:33]}  Bb7 {[%clk 0:02:29]} 15. Bxd6 {[%clk 0:02:25]}  Qxd6 {[%clk 0:02:29]} 16. Qg3 {[%clk 0:02:25]}  Qxg3 {[%clk 0:02:27]} 17. fxg3 {[%clk 0:02:25]}  Rfe8 {[%clk 0:02:25]} 18. g4 {[%clk 0:02:22]}  d4 {[%clk 0:02:24]} 19. Ng3 {[%clk 0:02:19]}  Nd5 {[%clk 0:02:22]} 20. Bc4 {[%clk 0:02:16]}  g6 {[%clk 0:01:58]} 21. Rf2 {[%clk 0:01:47]}  Re7 {[%clk 0:01:58]} 22. Raf1 {[%clk 0:01:44]}  Rf8 {[%clk 0:01:38]} 23. Bxd5 {[%clk 0:01:28]}  Bxd5 {[%clk 0:01:37]} 24. Rd1 {[%clk 0:01:29]}  Rfe8 {[%clk 0:01:25]} 25. Rfd2 {[%clk 0:01:20]}  Re1+ {[%clk 0:01:22]} 26. Kf2 {[%clk 0:01:18]}  Rxd1 {[%clk 0:01:19]} 27. Rxd1 {[%clk 0:01:19]}  Bc6 {[%clk 0:01:11]} 28. c3 {[%clk 0:01:19]}  dxc3 {[%clk 0:01:07]} 29. Rc1 {[%clk 0:01:18]}  Rd8 {[%clk 0:01:07]} 30. Nf1 {[%clk 0:00:58]}  Rd3 {[%clk 0:00:57]} 31. a4 {[%clk 0:00:56]}  Bd5 {[%clk 0:00:44]} 32. Ke2 {[%clk 0:00:46]}  c4 {[%clk 0:00:44]} 33. b4 {[%clk 0:00:37]}  Bxg2 {[%clk 0:00:34]} 34. Ne3 {[%clk 0:00:37]}  Bxh3 {[%clk 0:00:32]} 35. Nxc4 {[%clk 0:00:36]}  Rd4 {[%clk 0:00:30]} 36. Rxc3 {[%clk 0:00:35]}  Bxg4+ {[%clk 0:00:30]} 37. Ke3 {[%clk 0:00:35]}  Rd8 {[%clk 0:00:29]} 38. Ne5 {[%clk 0:00:31]}  Be6 {[%clk 0:00:28]} 39. b5 {[%clk 0:00:29]}  h5 {[%clk 0:00:18]} 40. Nc6 {[%clk 0:00:29]}  Rd7 {[%clk 0:00:18]} 41. a5 {[%clk 0:00:28]}  h4 {[%clk 0:00:17]} 42. a6 {[%clk 0:00:25]}  h3 {[%clk 0:00:14]} 43. Rc2 {[%clk 0:00:15]}  Rc7 {[%clk 0:00:09]} 44. b6 {[%clk 0:00:09]}  Rc8 {[%clk 0:00:03]} 45. Ne7+ {[%clk 0:00:05]}  Kg7 {[%clk 0:00:02]} 46. Nxc8 {[%clk 0:00:06]}  Bxc8 {[%clk 0:00:02]} 47. b7 {[%clk 0:00:06]}  Bf5 {[%clk 0:00:01]} 48. Rh2 {[%clk 0:00:05]} 1-0


[Site "https://www.chess.com"]